[Event "DLM Youth 2024"]
[Site "Tuebingen"]
[Date "2024.10.04"]
[Round "4"]
[White "Stehning, Toni"]
[Black "Kovalskyy, Alicia"]
[Result "1-0"]
[ECO "C54"]
[WhiteElo "1817"]
[BlackElo "1908"]
[Annotator "RC"]
[PlyCount "54"]
[EventDate "2024.10.03"]
[EventType "team-swiss"]
[EventRounds "7"]
[EventCountry "GER"]
[SourceTitle "playchess.com"]
[Source "ChessBase"]
[SourceQuality "1"]
[TimeControl "40/5400+30:1800+30"]

1. e4 {[%emt 0:00:03]} e5 {[%emt 0:00:10]} 2. Nf3 {[%emt 0:00:04]} Nc6 {[%emt 0:00:04]} 3. Bc4 {[%emt 0:00:04]} Bc5 {[%emt 0:00:05]} 4. c3 {[%emt 0:00:03]} Nf6 {[%emt 0:00:09]} 5. d4 {[%emt 0:00:06]} exd4 {[%emt 0:00:16]} 6. e5 {[%emt 0:00:07]} d5 {[%emt 0:00:05]} 7. Bb5 {[%emt 0:00:08]} Ne4 {[%emt 0:00:05]} 8. cxd4 {[%emt 0:00:05]} Bb6 {[%emt 0:00:04]} 9. Nc3 {[%emt 0:00:07]} O-O {[%emt 0:00:29]} 10. Be3 {[%emt 0:00:06]} Bg4 {[%emt 0:00:28]} 11. Qc2 {[%emt 0:00:17]} Bf5 {[%emt 0:01:10]} 12. Qe2 {[%emt 0:00:22]} f6 {[%emt 0:08:00]} 13. Nxd5 {[%emt 0:00:42]} Kh8 {[%emt 0:03:12]} 14. Nxb6 {[%emt 0:01:36]} axb6 {[%emt 0:02:17]} 15. Bxc6 {[%emt 0:07:01]} bxc6 {[%emt 0:00:05]} 16. O-O {[%emt 0:01:40]} Bg4 {[%emt 0:04:41]} 17. Qd3 {[%emt 0:11:44]} Bxf3 {[%emt 0:02:36]} 18. gxf3 {[%emt 0:00:17]} Ng5 {[%emt 0:09:58]} 19. Bxg5 {[%emt 0:00:46]} fxg5 {[%emt 0:00:23]} 20. Rfe1 {[%emt 0:05:11]} Qd5 {[%emt 0:07:43]} 21. Qe4 {[%emt 0:09:40]} Qe6 {[%emt 0:24:39]} 22. Rac1 {[%emt 0:07:06]} Qh3 {[%emt 0:12:05]} 23. Rxc6 {[%emt 0:11:08]} Rf4 {[%emt 0:00:58]} 24. Qd5 {[%emt 0:00:31]} Rxf3 {[%emt 0:02:30]} 25. Rf6 {[%emt 0:00:44]} Qg4+ {[%emt 0:05:04]} 26. Kh1 {[%emt 0:00:23]} gxf6 {[%emt 0:00:34]} 27. Qxa8+ {[%emt 0:01:44]} Kg7 {[%emt 0:00:04]} 1-0

[Event "DLM Youth 2024"]
[Site "Tuebingen"]
[Date "2024.10.04"]
[Round "4"]
[White "Wartenberg, Alissa"]
[Black "Glowiak, Alexandra"]
[Result "1-0"]
[ECO "C64"]
[WhiteElo "1813"]
[BlackElo "1839"]
[Annotator "NA RC"]
[PlyCount "36"]
[EventDate "2024.10.03"]
[EventType "team-swiss"]
[EventRounds "7"]
[EventCountry "GER"]
[SourceTitle "playchess.com"]
[Source "ChessBase"]
[SourceQuality "1"]
[TimeControl "40/5400+30:1800+30"]

1. e4 {[%emt 0:00:03]} e5 {[%emt 0:00:03]} 2. Nf3 {[%emt 0:00:10]} Nc6 {[%emt 0:00:03]} 3. Bb5 {[%emt 0:00:04]} Bc5 {[%emt 0:00:21]} 4. c3 {[%emt 0:00:07]} Nge7 {[%emt 0:08:46]} 5. O-O {[%emt 0:02:19]} a6 {[%emt 0:02:40]} 6. Ba4 {[%emt 0:05:52]} b5 {[%emt 0:00:26]} 7. Bb3 {[%emt 0:06:21]} O-O {[%emt 0:02:32]} 8. d4 {[%emt 0:07:35]} exd4 {[%emt 0:00:20]} 9. cxd4 {[%emt 0:00:08]} Bb6 {[%emt 0:00:46]} 10. Bg5 {[%emt 0:04:38]} Na5 {[%emt 0:09:37]} 11. Bc2 {[%emt 0:02:26]} f6 {[%emt 0:04:29]} 12. Be3 {[%emt 0:00:41]} Bb7 {[%emt 0:03:07]} 13. e5 {[%emt 0:05:07]} Nd5 {[%emt 0:08:58]} 14. Qd3 {[%emt 0:02:16]} f5 {[%emt 0:03:08]} 15. Bg5 {[%emt 0:02:06]} Qe8 {[%emt 0:01:39]} 16. a3 {[%emt 0:05:54]} h6 {[%emt 0:06:35]} 17. Bd2 {[%emt 0:11:56]} Nc4 {[%emt 0:13:08]} 18. Bc1 {[%emt 0:13:26]} Qh5 {[%emt 0:16:25]} 1-0

[Event "DLM Youth 2024"]
[Site "Tuebingen"]
[Date "2024.10.04"]
[Round "4"]
[White "Ensslen, Jakob"]
[Black "Goepfert, Gregor"]
[Result "0-1"]
[ECO "D02"]
[WhiteElo "1774"]
[BlackElo "1759"]
[Annotator "NA RC"]
[PlyCount "114"]
[EventDate "2024.10.03"]
[EventType "team-swiss"]
[EventRounds "7"]
[EventCountry "GER"]
[SourceTitle "playchess.com"]
[Source "ChessBase"]
[SourceQuality "1"]
[TimeControl "40/5400+30:1800+30"]

1. d4 {[%emt 0:00:04]} d5 {[%emt 0:00:05]} 2. Bf4 {[%emt 0:00:06]} Nf6 {[%emt 0:00:05]} 3. e3 {[%emt 0:00:09]} Bf5 {[%emt 0:00:16]} 4. Bd3 {[%emt 0:01:22]} Bxd3 {[%emt 0:01:47]} 5. Qxd3 {[%emt 0:01:41]} c6 {[%emt 0:01:47]} 6. Nd2 {[%emt 0:02:40]} e6 {[%emt 0:01:52]} 7. Ngf3 {[%emt 0:03:52]} Nbd7 {[%emt 0:01:03]} 8. h3 {[%emt 0:05:28]} Be7 {[%emt 0:04:41]} 9. Ne5 {[%emt 0:05:55]} Nxe5 {[%emt 0:03:20]} 10. Bxe5 {[%emt 0:02:45]} Qb6 {[%emt 0:08:46]} 11. Qb3 {[%emt 0:06:18]} O-O {[%emt 0:01:11]} 12. O-O {[%emt 0:02:16]} Rfe8 {[%emt 0:06:00]} 13. c4 {[%emt 0:06:49]} Qxb3 {[%emt 0:11:39]} 14. axb3 {[%emt 0:01:08]} a6 {[%emt 0:04:34]} 15. c5 {[%emt 0:03:41]} Nd7 {[%emt 0:02:25]} 16. Bh2 {[%emt 0:09:34]} e5 {[%emt 0:02:45]} 17. Rfe1 {[%emt 0:04:22]} Bf6 {[%emt 0:06:54]} 18. Nf3 {[%emt 0:02:12]} exd4 {[%emt 0:08:34]} 19. exd4 {[%emt 0:01:04]} Re4 {[%emt 0:02:08]} 20. Rxe4 {[%emt 0:03:34]} dxe4 {[%emt 0:06:01]} 21. Ne5 {[%emt 0:05:55]} Rd8 {[%emt 0:10:28]} 22. f4 {[%emt 0:14:07]} exf3 {[%emt 0:01:55]} 23. Nxf3 {[%emt 0:02:00]} Nf8 {[%emt 0:02:29]} 24. Ra4 {[%emt 0:04:31]} Ne6 {[%emt 0:01:31]} 25. Bd6 {[%emt 0:00:41]} h5 {[%emt 0:02:59]} 26. g3 {[%emt 0:03:17]} g5 {[%emt 0:00:23]} 27. Ne5 {[%emt 0:01:13]} Bxe5 {[%emt 0:02:01]} 28. Bxe5 {[%emt 0:00:31]} Rd5 {[%emt 0:01:34]} 29. Rb4 {[%emt 0:02:11]} Nxc5 {[%emt 0:01:04]} 30. dxc5 {[%emt 0:01:55]} Rxe5 {[%emt 0:00:08]} 31. Rxb7 {[%emt 0:00:11]} Rxc5 {[%emt 0:00:39]} 32. Rb6 {[%emt 0:01:01]} Rb5 {[%emt 0:02:51]} 33. Rxa6 {[%emt 0:00:25]} Rxb3 {[%emt 0:00:10]} 34. Rxc6 {[%emt 0:00:25]} Rxg3+ {[%emt 0:01:00]} 35. Kh2 {[%emt 0:00:23]} Rb3 {[%emt 0:00:13]} 36. Rc2 {[%emt 0:00:52]} Kg7 {[%emt 0:00:29]} 37. Rg2 {[%emt 0:01:31]} Kg6 {[%emt 0:00:31]} 38. Rf2 {[%emt 0:00:45]} h4 {[%emt 0:00:46]} 39. Kg2 {[%emt 0:01:31]} f6 {[%emt 0:00:20]} 40. Kh2 {[%emt 0:00:49]} Kg7 {[%emt 0:00:13]} 41. Kg2 {[%emt 0:17:19]} Kg6 {[%emt 0:00:51]} 42. Kh2 {[%emt 0:02:55]} f5 {[%emt 0:00:32]} 43. Rg2 {[%emt 0:03:19]} Kf6 {[%emt 0:01:04]} 44. Re2 {[%emt 0:01:18]} g4 {[%emt 0:01:28]} 45. hxg4 {[%emt 0:01:21]} fxg4 {[%emt 0:00:03]} 46. Rc2 {[%emt 0:01:20]} Kg5 {[%emt 0:00:42]} 47. Rc5+ {[%emt 0:02:04]} Kf4 {[%emt 0:00:24]} 48. Rc4+ {[%emt 0:00:51]} Kf3 {[%emt 0:00:21]} 49. Rc2 {[%emt 0:00:12]} h3 {[%emt 0:02:07]} 50. Rd2 {[%emt 0:02:03]} Kf4 {[%emt 0:00:34]} 51. Re2 {[%emt 0:00:52]} Kg5 {[%emt 0:00:16]} 52. Rc2 {[%emt 0:00:36]} Kh4 {[%emt 0:00:09]} 53. Rd2 {[%emt 0:00:54]} g3+ {[%emt 0:00:30]} 54. Kg1 {[%emt 0:00:39]} Re3 {[%emt 0:04:33]} 55. Kf1 {[%emt 0:00:32]} Rf3+ {[%emt 0:01:39]} 56. Kg1 {[%emt 0:01:20]} h2+ {[%emt 0:00:32]} 57. Kg2 {[%emt 0:00:12]} Rf2+ {[%emt 0:00:15]} 0-1

[Event "DLM Youth 2024"]
[Site "Tuebingen"]
[Date "2024.10.04"]
[Round "4"]
[White "Aguike, Toshiya"]
[Black "Steinbrenner, Peter"]
[Result "0-1"]
[ECO "B92"]
[WhiteElo "1719"]
[BlackElo "1952"]
[Annotator "RC"]
[PlyCount "146"]
[EventDate "2024.10.03"]
[EventType "team-swiss"]
[EventRounds "7"]
[EventCountry "GER"]
[SourceTitle "playchess.com"]
[Source "ChessBase"]
[SourceQuality "1"]
[TimeControl "40/5400+30:1800+30"]

1. e4 {[%emt 0:00:15]} c5 {[%emt 0:00:21]} 2. Nf3 {[%emt 0:00:47]} d6 {[%emt 0:00:09]} 3. d4 {[%emt 0:00:47]} cxd4 {[%emt 0:00:07]} 4. Nxd4 {[%emt 0:00:06]} Nf6 {[%emt 0:00:09]} 5. Nc3 {[%emt 0:00:04]} a6 {[%emt 0:00:25]} 6. Be2 {[%emt 0:01:16]} e5 {[%emt 0:00:25]} 7. Nf3 {[%emt 0:00:55]} Be7 {[%emt 0:00:17]} 8. h3 {[%emt 0:01:31]} Be6 {[%emt 0:01:53]} 9. Be3 {[%emt 0:04:00]} b5 {[%emt 0:02:07]} 10. Ng5 {[%emt 0:01:25]} d5 {[%emt 0:08:05]} 11. exd5 {[%emt 0:05:02]} Bxd5 {[%emt 0:04:33]} 12. Nxd5 {[%emt 0:00:25]} Nxd5 {[%emt 0:00:30]} 13. Ne4 {[%emt 0:17:27]} Nxe3 {[%emt 0:02:01]} 14. Qxd8+ {[%emt 0:02:21]} Bxd8 {[%emt 0:00:51]} 15. fxe3 {[%emt 0:00:18]} O-O {[%emt 0:03:09]} 16. O-O-O {[%emt 0:05:33]} Bb6 {[%emt 0:00:48]} 17. Rd3 {[%emt 0:00:56]} Nc6 {[%emt 0:00:42]} 18. g4 {[%emt 0:02:24]} Nb4 {[%emt 0:00:31]} 19. Rb3 {[%emt 0:06:35]} Nd5 {[%emt 0:01:32]} 20. Kd2 {[%emt 0:02:44]} Rfd8 {[%emt 0:01:01]} 21. Rd3 {[%emt 0:06:51]} Nb4 {[%emt 0:04:00]} 22. Rxd8+ {[%emt 0:01:01]} Rxd8+ {[%emt 0:00:31]} 23. Bd3 {[%emt 0:02:19]} Nd5 {[%emt 0:01:25]} 24. c3 {[%emt 0:00:36]} Bxe3+ {[%emt 0:00:26]} 25. Kc2 {[%emt 0:04:50]} Nf4 {[%emt 0:01:23]} 26. Bf1 {[%emt 0:00:43]} g6 {[%emt 0:01:53]} 27. g5 {[%emt 0:02:42]} Ne6 {[%emt 0:01:50]} 28. h4 {[%emt 0:02:54]} Nc5 {[%emt 0:01:46]} 29. Nxc5 {[%emt 0:01:15]} Rd2+ {[%emt 0:01:58]} 30. Kb3 {[%emt 0:02:33]} Bxc5 {[%emt 0:00:11]} 31. Bh3 {[%emt 0:02:13]} Bf2 {[%emt 0:02:08]} 32. Bc8 {[%emt 0:02:42]} a5 {[%emt 0:00:54]} 33. Bb7 {[%emt 0:00:24]} Bc5 {[%emt 0:01:20]} 34. a3 {[%emt 0:02:12]} b4 {[%emt 0:08:48]} 35. Re1 {[%emt 0:02:48]} bxa3 {[%emt 0:02:11]} 36. bxa3 {[%emt 0:00:44]} Bd6 {[%emt 0:01:41]} 37. a4 {[%emt 0:01:47]} h6 {[%emt 0:04:12]} 38. Kc4 {[%emt 0:03:46]} Rh2 {[%emt 0:03:57]} 39. Re4 {[%emt 0:00:48]} hxg5 {[%emt 0:00:16]} 40. hxg5 {[%emt 0:00:07]} Rh3 {[%emt 0:05:02]} 41. Rg4 {[%emt 0:37:53]} Kg7 {[%emt 0:34:35]} 42. Be4 {[%emt 0:02:59]} Bc7 {[%emt 0:02:47]} 43. Rg2 {[%emt 0:02:26]} Bd8 {[%emt 0:04:26]} 44. Kd5 {[%emt 0:00:00]} Rxc3 {[%emt 0:00:00]} 45. Kxe5 {[%emt 0:00:00]} Ra3 {[%emt 0:00:00]} 46. Bc2 {[%emt 0:00:00]} Bxg5 {[%emt 0:00:00]} 47. Kd5 {[%emt 0:00:00]} Be7 {[%emt 0:00:00]} 48. Kc4 {[%emt 0:00:00]} Rf3 {[%emt 0:00:00]} 49. Kb5 {[%emt 0:00:00]} Bb4 {[%emt 0:00:00]} 50. Kc4 {[%emt 0:00:00]} f5 {[%emt 0:00:00]} 51. Kd4 {[%emt 0:00:00]} Kf6 {[%emt 0:00:00]} 52. Kd5 {[%emt 0:00:00]} g5 {[%emt 0:00:00]} 53. Bb1 {[%emt 0:00:00]} g4 {[%emt 0:00:00]} 54. Bc2 {[%emt 0:00:00]} Kg5 {[%emt 0:00:00]} 55. Ke5 {[%emt 0:00:00]} Bc3+ {[%emt 0:00:00]} 56. Ke6 {[%emt 0:00:00]} Re3+ {[%emt 0:00:00]} 57. Kd5 {[%emt 0:00:00]} f4 {[%emt 0:00:00]} 58. Kc4 {[%emt 0:00:00]} f3 {[%emt 0:00:00]} 59. Rg1 {[%emt 0:00:00]} f2 {[%emt 0:00:00]} 60. Rf1 {[%emt 0:00:00]} Be1 {[%emt 0:00:00]} 61. Kd4 {[%emt 0:00:00]} Kf4 {[%emt 0:00:00]} 62. Rh1 {[%emt 0:00:00]} Bc3+ {[%emt 0:00:00]} 63. Kd5 {[%emt 0:00:00]} Re1 {[%emt 0:00:00]} 64. Rh8 {[%emt 0:00:00]} Bxh8 {[%emt 0:00:00]} 65. Bd3 {[%emt 0:00:00]} Rd1 {[%emt 0:00:00]} 66. Kc5 {[%emt 0:00:00]} Bd4+ {[%emt 0:00:00]} 67. Kc6 {[%emt 0:00:00]} Rxd3 {[%emt 0:00:00]} 68. Kb5 {[%emt 0:00:00]} f1=Q {[%emt 0:00:00]} 69. Kc6 {[%emt 0:00:05]} Rc3+ {[%emt 0:00:00]} 70. Kd5 {[%emt 0:00:00]} Qc4+ {[%emt 0:00:00]} 71. Kd6 {[%emt 0:00:00]} Qc6+ {[%emt 0:00:00]} 72. Ke7 {[%emt 0:00:00]} Re3+ {[%emt 0:00:00]} 73. Kf8 {[%emt 0:00:00]} Qe8# {[%emt 0:00:17]} 0-1

[Event "DLM Youth 2024"]
[Site "Tuebingen"]
[Date "2024.10.04"]
[Round "4"]
[White "Hoffmann, Sophia"]
[Black "Bursan, Ana-Maria"]
[Result "1/2-1/2"]
[ECO "D02"]
[WhiteElo "1718"]
[BlackElo "1769"]
[Annotator "NA RC"]
[PlyCount "72"]
[EventDate "2024.10.03"]
[EventType "team-swiss"]
[EventRounds "7"]
[EventCountry "GER"]
[SourceTitle "playchess.com"]
[Source "ChessBase"]
[SourceQuality "1"]
[TimeControl "40/5400+30:1800+30"]

1. d4 {[%emt 0:00:03]} d5 {[%emt 0:00:05]} 2. Nf3 {[%emt 0:00:06]} Nf6 {[%emt 0:00:43]} 3. Bf4 {[%emt 0:01:49]} c5 {[%emt 0:01:56]} 4. e3 {[%emt 0:00:41]} Qb6 {[%emt 0:00:51]} 5. Qc1 {[%emt 0:07:31]} cxd4 {[%emt 0:04:09]} 6. exd4 {[%emt 0:03:07]} Nc6 {[%emt 0:01:27]} 7. c3 {[%emt 0:01:26]} Bg4 {[%emt 0:03:44]} 8. Nbd2 {[%emt 0:02:16]} e6 {[%emt 0:04:27]} 9. Bd3 {[%emt 0:03:21]} Nh5 {[%emt 0:04:17]} 10. Bg3 {[%emt 0:01:51]} Nxg3 {[%emt 0:01:18]} 11. hxg3 {[%emt 0:00:27]} Bd6 {[%emt 0:03:44]} 12. Qc2 {[%emt 0:02:59]} h6 {[%emt 0:02:28]} 13. Nh2 {[%emt 0:11:49]} f5 {[%emt 0:08:46]} 14. Nxg4 {[%emt 0:01:58]} fxg4 {[%emt 0:00:12]} 15. Bg6+ {[%emt 0:01:13]} Kd7 {[%emt 0:02:02]} 16. Bh5 {[%emt 0:09:08]} Rac8 {[%emt 0:07:47]} 17. Bxg4 {[%emt 0:13:58]} Nxd4 {[%emt 0:07:17]} 18. Qg6 {[%emt 0:04:54]} Nf5 {[%emt 0:09:05]} 19. Bxf5 {[%emt 0:13:32]} exf5 {[%emt 0:00:31]} 20. Qxf5+ {[%emt 0:03:44]} Kc7 {[%emt 0:08:55]} 21. O-O-O {[%emt 0:04:41]} Kb8 {[%emt 0:04:59]} 22. Qxd5 {[%emt 0:00:57]} Ba3 {[%emt 0:07:53]} 23. Qe5+ {[%emt 0:03:24]} Bd6 {[%emt 0:00:52]} 24. Qxg7 {[%emt 0:01:50]} Rxc3+ {[%emt 0:05:38]} 25. bxc3 {[%emt 0:05:38]} Ba3+ {[%emt 0:00:36]} 26. Kc2 {[%emt 0:00:08]} Qb2+ {[%emt 0:00:38]} 27. Kd3 {[%emt 0:00:07]} Qb5+ {[%emt 0:03:19]} 28. c4 {[%emt 0:01:19]} Qf5+ {[%emt 0:01:02]} 29. Ne4 {[%emt 0:00:26]} Rd8+ {[%emt 0:00:33]} 30. Kc3 {[%emt 0:00:32]} Qa5+ {[%emt 0:00:52]} 31. Kc2 {[%emt 0:00:33]} Qa4+ {[%emt 0:00:15]} 32. Kc3 {[%emt 0:00:27]} Bb4+ {[%emt 0:02:08]} 33. Kb2 {[%emt 0:00:10]} Ba3+ {[%emt 0:01:34]} 34. Kc3 {[%emt 0:00:22]} Bb4+ {[%emt 0:02:30]} 35. Kb2 {[%emt 0:00:29]} Ba3+ {[%emt 0:00:50]} 36. Kc3 {[%emt 0:00:28]} Bb4+ {[%emt 0:00:32]} 1/2-1/2

[Event "DLM Youth 2024"]
[Site "Tuebingen"]
[Date "2024.10.04"]
[Round "4"]
[White "Dohon, Maria-Johanna"]
[Black "Huppert, Anna"]
[Result "1-0"]
[ECO "E11"]
[WhiteElo "1717"]
[BlackElo "1661"]
[Annotator "NA RC"]
[PlyCount "75"]
[EventDate "2024.10.03"]
[EventType "team-swiss"]
[EventRounds "7"]
[EventCountry "GER"]
[SourceTitle "playchess.com"]
[Source "ChessBase"]
[SourceQuality "1"]
[TimeControl "40/5400+30:1800+30"]

1. d4 {[%emt 0:00:04]} Nf6 {[%emt 0:00:06]} 2. c4 {[%emt 0:00:33]} e6 {[%emt 0:00:06]} 3. Nf3 {[%emt 0:00:26]} Bb4+ {[%emt 0:00:48]} 4. Bd2 {[%emt 0:00:41]} Bxd2+ {[%emt 0:00:23]} 5. Nbxd2 {[%emt 0:01:30]} O-O {[%emt 0:01:26]} 6. e3 {[%emt 0:04:58]} b6 {[%emt 0:05:11]} 7. Bd3 {[%emt 0:02:38]} Bb7 {[%emt 0:02:23]} 8. O-O {[%emt 0:00:15]} d5 {[%emt 0:03:47]} 9. Rc1 {[%emt 0:06:02]} Ne4 {[%emt 0:07:29]} 10. Qc2 {[%emt 0:06:54]} f5 {[%emt 0:10:51]} 11. cxd5 {[%emt 0:03:30]} exd5 {[%emt 0:01:20]} 12. Qxc7 {[%emt 0:03:41]} Qxc7 {[%emt 0:01:27]} 13. Rxc7 {[%emt 0:00:09]} Rf7 {[%emt 0:03:08]} 14. Rxf7 {[%emt 0:06:59]} Kxf7 {[%emt 0:00:09]} 15. Ne5+ {[%emt 0:01:38]} Kg8 {[%emt 0:03:21]} 16. Nxe4 {[%emt 0:08:29]} fxe4 {[%emt 0:01:15]} 17. Bb5 {[%emt 0:00:53]} a6 {[%emt 0:09:29]} 18. Ba4 {[%emt 0:00:37]} b5 {[%emt 0:02:51]} 19. Bb3 {[%emt 0:00:39]} a5 {[%emt 0:00:17]} 20. Rc1 {[%emt 0:03:38]} Na6 {[%emt 0:02:23]} 21. a3 {[%emt 0:05:40]} a4 {[%emt 0:03:47]} 22. Bd1 {[%emt 0:04:19]} Rc8 {[%emt 0:06:02]} 23. Rxc8+ {[%emt 0:01:46]} Bxc8 {[%emt 0:00:15]} 24. Kf1 {[%emt 0:04:29]} Nc7 {[%emt 0:06:33]} 25. Ke1 {[%emt 0:02:12]} g6 {[%emt 0:07:26]} 26. Kd2 {[%emt 0:00:41]} Kf8 {[%emt 0:07:34]} 27. Kc3 {[%emt 0:02:57]} Na6 {[%emt 0:03:19]} 28. Be2 {[%emt 0:03:57]} Nc7 {[%emt 0:02:06]} 29. Kb4 {[%emt 0:01:11]} Ba6 {[%emt 0:00:45]} 30. Nd7+ {[%emt 0:03:22]} Ke7 {[%emt 0:00:33]} 31. Nc5 {[%emt 0:00:25]} Bc8 {[%emt 0:01:48]} 32. Bxb5 {[%emt 0:06:57]} Nxb5 {[%emt 0:00:29]} 33. Kxb5 {[%emt 0:00:08]} g5 {[%emt 0:00:30]} 34. Kc6 {[%emt 0:01:20]} Be6 {[%emt 0:02:12]} 35. Nxe6 {[%emt 0:01:45]} Kxe6 {[%emt 0:00:08]} 36. Kb5 {[%emt 0:00:31]} g4 {[%emt 0:00:34]} 37. Kxa4 {[%emt 0:00:18]} Kd6 {[%emt 0:00:15]} 38. Kb5 {[%emt 0:00:19]} 1-0

[Event "DLM Youth 2024"]
[Site "Tuebingen"]
[Date "2024.10.04"]
[Round "4"]
[White "Busch, Lara Sophie"]
[Black "Stiehler, Mara"]
[Result "1-0"]
[ECO "C01"]
[WhiteElo "1714"]
[BlackElo "1601"]
[Annotator "NA RC"]
[PlyCount "51"]
[EventDate "2024.10.03"]
[EventType "team-swiss"]
[EventRounds "7"]
[EventCountry "GER"]
[SourceTitle "playchess.com"]
[Source "ChessBase"]
[SourceQuality "1"]
[TimeControl "40/5400+30:1800+30"]

1. e4 {[%emt 0:00:03]} e6 {[%emt 0:00:03]} 2. d4 {[%emt 0:00:08]} d5 {[%emt 0:00:03]} 3. exd5 {[%emt 0:00:09]} exd5 {[%emt 0:00:05]} 4. c4 {[%emt 0:00:15]} Bb4+ {[%emt 0:00:04]} 5. Nc3 {[%emt 0:00:17]} Nf6 {[%emt 0:00:22]} 6. Bd3 {[%emt 0:00:15]} dxc4 {[%emt 0:00:06]} 7. Bxc4 {[%emt 0:00:12]} O-O {[%emt 0:00:58]} 8. Nge2 {[%emt 0:00:13]} Nc6 {[%emt 0:03:25]} 9. O-O {[%emt 0:00:54]} Bf5 {[%emt 0:02:35]} 10. a3 {[%emt 0:02:07]} Bd6 {[%emt 0:01:22]} 11. Ng3 {[%emt 0:02:17]} Bxg3 {[%emt 0:00:54]} 12. hxg3 {[%emt 0:10:20]} Nxd4 {[%emt 0:02:15]} 13. Bg5 {[%emt 0:01:09]} Ne6 {[%emt 0:01:56]} 14. Bxe6 {[%emt 0:14:50]} fxe6 {[%emt 0:01:28]} 15. Qb3 {[%emt 0:02:57]} b6 {[%emt 0:02:00]} 16. Rad1 {[%emt 0:06:12]} Qe8 {[%emt 0:01:27]} 17. f3 {[%emt 0:03:22]} Qg6 {[%emt 0:01:33]} 18. Bf4 {[%emt 0:08:56]} Nh5 {[%emt 0:08:33]} 19. Rf2 {[%emt 0:06:45]} Nxf4 {[%emt 0:04:49]} 20. gxf4 {[%emt 0:00:55]} Kh8 {[%emt 0:05:15]} 21. Rfd2 {[%emt 0:05:35]} h5 {[%emt 0:03:21]} 22. Kf2 {[%emt 0:01:50]} h4 {[%emt 0:02:03]} 23. Ne2 {[%emt 0:03:48]} Rae8 {[%emt 0:10:15]} 24. Rh1 {[%emt 0:05:12]} Qh6 {[%emt 0:05:35]} 25. Qc3 {[%emt 0:05:46]} Rf7 {[%emt 0:05:47]} 26. Qe5 {[%emt 0:03:29]} 1-0

[Event "DLM Youth 2024"]
[Site "Tuebingen"]
[Date "2024.10.04"]
[Round "4"]
[White "Loos, Tilda"]
[Black "Tu, Tiffany"]
[Result "0-1"]
[ECO "C54"]
[WhiteElo "1700"]
[BlackElo "1675"]
[Annotator "NA RC"]
[PlyCount "94"]
[EventDate "2024.10.03"]
[EventType "team-swiss"]
[EventRounds "7"]
[EventCountry "GER"]
[SourceTitle "playchess.com"]
[Source "ChessBase"]
[SourceQuality "1"]
[TimeControl "40/5400+30:1800+30"]

1. e4 {[%emt 0:00:02]} e5 {[%emt 0:00:06]} 2. Nf3 {[%emt 0:00:03]} Nc6 {[%emt 0:00:07]} 3. Bc4 {[%emt 0:00:04]} Nf6 {[%emt 0:00:04]} 4. d3 {[%emt 0:00:06]} Bc5 {[%emt 0:00:16]} 5. c3 {[%emt 0:00:04]} d6 {[%emt 0:00:03]} 6. b4 {[%emt 0:00:03]} Bb6 {[%emt 0:00:07]} 7. a4 {[%emt 0:00:03]} a6 {[%emt 0:00:11]} 8. O-O {[%emt 0:00:08]} O-O {[%emt 0:00:15]} 9. Nbd2 {[%emt 0:00:05]} Re8 {[%emt 0:00:46]} 10. Bb3 {[%emt 0:00:38]} Ne7 {[%emt 0:02:42]} 11. Nc4 {[%emt 0:01:00]} Ba7 {[%emt 0:02:38]} 12. Bg5 {[%emt 0:01:59]} Ng6 {[%emt 0:01:54]} 13. Re1 {[%emt 0:00:47]} h6 {[%emt 0:00:41]} 14. Be3 {[%emt 0:01:36]} Bxe3 {[%emt 0:02:49]} 15. Nxe3 {[%emt 0:00:16]} Nf4 {[%emt 0:01:09]} 16. Nf1 {[%emt 0:03:48]} Nh7 {[%emt 0:01:46]} 17. Ng3 {[%emt 0:01:33]} Qf6 {[%emt 0:02:10]} 18. d4 {[%emt 0:03:11]} Bg4 {[%emt 0:01:06]} 19. h3 {[%emt 0:02:22]} Bxf3 {[%emt 0:00:31]} 20. Qxf3 {[%emt 0:08:20]} Nxh3+ {[%emt 0:01:20]} 21. Kf1 {[%emt 0:00:45]} Qxf3 {[%emt 0:00:50]} 22. gxf3 {[%emt 0:00:02]} N7g5 {[%emt 0:01:09]} 23. Bd1 {[%emt 0:01:33]} g6 {[%emt 0:04:23]} 24. Be2 {[%emt 0:04:42]} c6 {[%emt 0:06:31]} 25. Red1 {[%emt 0:03:04]} Rac8 {[%emt 0:03:49]} 26. dxe5 {[%emt 0:03:12]} dxe5 {[%emt 0:02:12]} 27. Rd7 {[%emt 0:01:29]} b5 {[%emt 0:02:44]} 28. axb5 {[%emt 0:01:55]} cxb5 {[%emt 0:03:56]} 29. Rxa6 {[%emt 0:06:04]} Rxc3 {[%emt 0:00:19]} 30. Bxb5 {[%emt 0:03:54]} Rb8 {[%emt 0:01:20]} 31. Rd5 {[%emt 0:05:11]} Nf4 {[%emt 0:00:53]} 32. Rd1 {[%emt 0:06:32]} Rxb5 {[%emt 0:00:43]} 33. Ne2 {[%emt 0:02:40]} Nxe2 {[%emt 0:00:27]} 34. Kxe2 {[%emt 0:00:02]} Nxf3 {[%emt 0:00:47]} 35. Ra8+ {[%emt 0:01:31]} Kg7 {[%emt 0:00:31]} 36. Ra4 {[%emt 0:03:31]} Nd4+ {[%emt 0:00:28]} 37. Kf1 {[%emt 0:01:32]} Rb3 {[%emt 0:00:42]} 38. Ra5 {[%emt 0:03:05]} Rxa5 {[%emt 0:00:26]} 39. bxa5 {[%emt 0:00:03]} Ra3 {[%emt 0:00:07]} 40. f4 {[%emt 0:00:48]} Rxa5 {[%emt 0:01:28]} 41. fxe5 {[%emt 0:30:15]} Nf3 {[%emt 0:31:14]} 42. Kg2 {[%emt 0:01:39]} Nxe5 {[%emt 0:00:20]} 43. Re1 {[%emt 0:01:51]} h5 {[%emt 0:01:01]} 44. Rh1 {[%emt 0:00:25]} Ra4 {[%emt 0:00:09]} 45. Re1 {[%emt 0:00:09]} Nd3 {[%emt 0:00:25]} 46. Re3 {[%emt 0:00:30]} Ne5 {[%emt 0:00:29]} 47. Kg3 {[%emt 0:00:45]} g5 {[%emt 0:00:16]} 0-1

[Event "DLM Youth 2024"]
[Site "Tuebingen"]
[Date "2024.10.04"]
[Round "4"]
[White "Ratushna, Olha"]
[Black "Noennig, Lotte"]
[Result "1-0"]
[ECO "C47"]
[WhiteElo "1644"]
[BlackElo "1658"]
[Annotator "NA RC"]
[PlyCount "58"]
[EventDate "2024.10.03"]
[EventType "team-swiss"]
[EventRounds "7"]
[EventCountry "GER"]
[SourceTitle "playchess.com"]
[Source "ChessBase"]
[SourceQuality "1"]
[TimeControl "40/5400+30:1800+30"]

1. e4 {[%emt 0:00:01]} e5 {[%emt 0:00:09]} 2. Nf3 {[%emt 0:00:04]} Nc6 {[%emt 0:00:07]} 3. Nc3 {[%emt 0:00:05]} Nf6 {[%emt 0:00:28]} 4. d4 {[%emt 0:00:07]} exd4 {[%emt 0:00:24]} 5. Nxd4 {[%emt 0:00:08]} Bb4 {[%emt 0:00:30]} 6. Nxc6 {[%emt 0:00:30]} bxc6 {[%emt 0:00:30]} 7. Bd3 {[%emt 0:00:30]} d5 {[%emt 0:00:44]} 8. exd5 {[%emt 0:00:00]} cxd5 {[%emt 0:00:30]} 9. O-O {[%emt 0:00:00]} O-O {[%emt 0:00:06]} 10. h3 {[%emt 0:00:00]} c6 {[%emt 0:00:56]} 11. Qf3 {[%emt 0:00:00]} Rb8 {[%emt 0:08:34]} 12. Bf4 {[%emt 0:00:08]} Bd6 {[%emt 0:01:39]} 13. Bxd6 {[%emt 0:00:47]} Qxd6 {[%emt 0:00:23]} 14. b3 {[%emt 0:00:39]} Re8 {[%emt 0:09:56]} 15. Rfe1 {[%emt 0:02:06]} Rxe1+ {[%emt 0:01:51]} 16. Rxe1 {[%emt 0:00:07]} Qb4 {[%emt 0:08:52]} 17. Kf1 {[%emt 0:04:28]} Be6 {[%emt 0:08:34]} 18. Na4 {[%emt 0:10:01]} Re8 {[%emt 0:05:16]} 19. Qe2 {[%emt 0:10:31]} g6 {[%emt 0:15:15]} 20. Qd1 {[%emt 0:02:21]} Qd6 {[%emt 0:03:07]} 21. Kg1 {[%emt 0:00:49]} Kg7 {[%emt 0:05:18]} 22. Qd2 {[%emt 0:09:01]} c5 {[%emt 0:09:06]} 23. c3 {[%emt 0:05:12]} Rd8 {[%emt 0:04:13]} 24. Bc2 {[%emt 0:03:07]} Qc7 {[%emt 0:02:17]} 25. Qg5 {[%emt 0:02:24]} c4 {[%emt 0:03:24]} 26. b4 {[%emt 0:00:55]} d4 {[%emt 0:01:46]} 27. Nc5 {[%emt 0:03:51]} d3 {[%emt 0:02:53]} 28. Bd1 {[%emt 0:01:01]} Bf5 {[%emt 0:01:01]} 29. g4 {[%emt 0:03:31]} Bd7 {[%emt 0:01:33]} 1-0